[Event "76th Montenegro Championship 2024"]
[Site "Podgorica"]
[Date "2024.02.11"]
[Round "7.9"]
[White "Sukovic, Andrej"]
[Black "Nenezic, Danilo"]
[Result "0-1"]
[ECO "B20"]
[WhiteElo "2339"]
[BlackElo "2086"]
[Annotator "RC"]
[PlyCount "130"]
[EventDate "2024.02.06"]
[EventType "swiss"]
[EventCountry "MNE"]
[SourceTitle "playchess.com"]
[Source "ChessBase"]
[SourceQuality "1"]
[TimeControl "40/5400+30:1800+30"]

1. e4 {[%emt 0:00:02]} c5 {[%emt 0:00:40]} 2. Ne2 {[%emt 0:00:10]} a6 {[%emt 0:00:30]} 3. g3 {[%emt 0:03:04]} b5 {[%emt 0:00:19]} 4. Bg2 {[%emt 0:00:07]} Bb7 {[%emt 0:00:09]} 5. O-O {[%emt 0:02:58]} Nf6 {[%emt 0:01:40]} 6. d3 {[%emt 0:00:55]} e6 {[%emt 0:00:25]} 7. c3 {[%emt 0:05:48]} Qc7 {[%emt 0:00:49]} 8. a4 {[%emt 0:02:12]} b4 {[%emt 0:06:54]} 9. cxb4 {[%emt 0:04:53]} cxb4 {[%emt 0:00:13]} 10. Bf4 {[%emt 0:00:09]} e5 {[%emt 0:05:54]} 11. Bg5 {[%emt 0:00:24]} Be7 {[%emt 0:01:22]} 12. Nd2 {[%emt 0:01:44]} h6 {[%emt 0:03:27]} 13. Rc1 {[%emt 0:02:36]} Qd8 {[%emt 0:01:13]} 14. Be3 {[%emt 0:05:34]} d6 {[%emt 0:06:36]} 15. Qc2 {[%emt 0:13:41]} Nc6 {[%emt 0:11:06]} 16. Nc4 {[%emt 0:01:41]} O-O {[%emt 0:06:07]} 17. Nb6 {[%emt 0:08:26]} Rb8 {[%emt 0:01:13]} 18. h3 {[%emt 0:00:18]} Nd7 {[%emt 0:03:50]} 19. Nd5 {[%emt 0:03:13]} Re8 {[%emt 0:01:46]} 20. Kh2 {[%emt 0:07:10]} Bf8 {[%emt 0:02:07]} 21. f4 {[%emt 0:03:34]} f6 {[%emt 0:12:32]} 22. Bf3 {[%emt 0:03:48]} Kh7 {[%emt 0:02:28]} 23. Bh5 {[%emt 0:00:20]} g6 {[%emt 0:03:59]} 24. Bg4 {[%emt 0:00:08]} Bg7 {[%emt 0:01:32]} 25. Qd2 {[%emt 0:05:16]} exf4 {[%emt 0:01:15]} 26. gxf4 {[%emt 0:00:58]} Nc5 {[%emt 0:05:37]} 27. Ng3 {[%emt 0:03:24]} Nb3 {[%emt 0:01:25]} 28. Qf2 {[%emt 0:00:57]} Nxc1 {[%emt 0:00:31]} 29. Bb6 {[%emt 0:00:05]} Nxd3 {[%emt 0:01:48]} 30. Qd2 {[%emt 0:01:42]} Nc5 {[%emt 0:00:51]} 31. Bxd8 {[%emt 0:00:09]} Rbxd8 {[%emt 0:00:46]} 32. Qg2 {[%emt 0:02:00]} Nd4 {[%emt 0:01:49]} 33. Rg1 {[%emt 0:04:25]} Bxd5 {[%emt 0:04:19]} 34. exd5 {[%emt 0:00:15]} f5 {[%emt 0:00:31]} 35. Bd1 {[%emt 0:00:34]} Rg8 {[%emt 0:02:00]} 36. h4 {[%emt 0:01:20]} Bf6 {[%emt 0:00:36]} 37. h5 {[%emt 0:00:22]} g5 {[%emt 0:01:03]} 38. Nxf5 {[%emt 0:01:06]} b3 {[%emt 0:04:45]} 39. Nxd4 {[%emt 0:00:52]} Bxd4 {[%emt 0:00:25]} 40. Re1 {[%emt 0:00:00]} gxf4 {[%emt 0:00:00]} 41. Re7+ {[%emt 0:07:13]} Kh8 {[%emt 0:03:00]} 42. Qd2 {[%emt 0:02:40]} Be5 {[%emt 0:00:48]} 43. Bxb3 {[%emt 0:05:37]} Rg5 {[%emt 0:02:56]} 44. Bd1 {[%emt 0:03:36]} f3+ {[%emt 0:12:39]} 45. Rxe5 {[%emt 0:00:18]} dxe5 {[%emt 0:00:49]} 46. Bxf3 {[%emt 0:02:27]} Rf8 {[%emt 0:00:32]} 47. Qe3 {[%emt 0:05:00]} Rf4 {[%emt 0:01:00]} 48. Kh3 {[%emt 0:02:10]} Nd7 {[%emt 0:01:17]} 49. a5 {[%emt 0:02:32]} Nf6 {[%emt 0:00:41]} 50. b3 {[%emt 0:04:21]} Rgf5 {[%emt 0:00:12]} 51. Be2 {[%emt 0:01:11]} Ne4 {[%emt 0:02:44]} 52. Qb6 {[%emt 0:03:37]} Rg5 {[%emt 0:07:55]} 53. Qxh6+ {[%emt 0:01:38]} Kg8 {[%emt 0:00:16]} 54. Qe6+ {[%emt 0:00:53]} Kh7 {[%emt 0:01:40]} 55. Qd7+ {[%emt 0:03:18]} Rg7 {[%emt 0:00:23]} 56. Qd8 {[%emt 0:00:18]} Rg3+ {[%emt 0:01:40]} 57. Kh2 {[%emt 0:00:07]} Rf2+ {[%emt 0:00:36]} 58. Kh1 {[%emt 0:00:01]} Rxe2 {[%emt 0:01:14]} 59. Qd7+ {[%emt 0:00:32]} Rg7 {[%emt 0:01:07]} 60. Qf5+ {[%emt 0:00:35]} Kh6 {[%emt 0:00:31]} 61. Qe6+ {[%emt 0:00:04]} Kxh5 {[%emt 0:01:10]} 62. Qxe5+ {[%emt 0:00:28]} Rg5 {[%emt 0:00:40]} 63. Qe8+ {[%emt 0:01:39]} Kh4 {[%emt 0:00:41]} 64. Qh8+ {[%emt 0:00:17]} Rh5 {[%emt 0:00:22]} 65. Qb8 {[%emt 0:00:46]} Kh3 {[%emt 0:00:46]} 0-1

[Event "76th Montenegro Championship 2024"]
[Site "Podgorica"]
[Date "2024.02.11"]
[Round "7.10"]
[White "Skvortsova, Alena"]
[Black "Vujosevic, Vladimir"]
[Result "1-0"]
[ECO "C45"]
[WhiteElo "2111"]
[BlackElo "2335"]
[Annotator "RC"]
[PlyCount "85"]
[EventDate "2024.02.06"]
[EventType "swiss"]
[EventCountry "MNE"]
[SourceTitle "playchess.com"]
[Source "ChessBase"]
[SourceQuality "1"]
[TimeControl "40/5400+30:1800+30"]

1. e4 {[%emt 0:02:25]} e5 {[%emt 0:00:22]} 2. Nf3 {[%emt 0:00:06]} Nc6 {[%emt 0:00:25]} 3. d4 {[%emt 0:00:28]} exd4 {[%emt 0:00:39]} 4. Nxd4 {[%emt 0:00:10]} Bc5 {[%emt 0:00:38]} 5. Nb3 {[%emt 0:00:15]} Bb6 {[%emt 0:00:30]} 6. Nc3 {[%emt 0:00:34]} d6 {[%emt 0:02:44]} 7. Qe2 {[%emt 0:00:21]} Nge7 {[%emt 0:07:14]} 8. Be3 {[%emt 0:00:28]} O-O {[%emt 0:03:39]} 9. O-O-O {[%emt 0:00:54]} Be6 {[%emt 0:05:38]} 10. f4 {[%emt 0:01:37]} f6 {[%emt 0:02:36]} 11. Kb1 {[%emt 0:03:40]} Bxe3 {[%emt 0:01:25]} 12. Qxe3 {[%emt 0:00:10]} Re8 {[%emt 0:04:35]} 13. Qf3 {[%emt 0:04:06]} Qc8 {[%emt 0:07:37]} 14. h3 {[%emt 0:00:50]} a6 {[%emt 0:02:06]} 15. g4 {[%emt 0:03:23]} Kh8 {[%emt 0:03:31]} 16. Rg1 {[%emt 0:03:48]} Bg8 {[%emt 0:04:27]} 17. h4 {[%emt 0:01:21]} Rf8 {[%emt 0:02:04]} 18. Bh3 {[%emt 0:01:05]} Qe8 {[%emt 0:06:22]} 19. Nd5 {[%emt 0:06:11]} Qd8 {[%emt 0:09:23]} 20. h5 {[%emt 0:07:17]} h6 {[%emt 0:03:50]} 21. Qg3 {[%emt 0:05:29]} Nxd5 {[%emt 0:05:24]} 22. exd5 {[%emt 0:00:36]} Nb4 {[%emt 0:01:51]} 23. Bg2 {[%emt 0:15:29]} a5 {[%emt 0:02:04]} 24. a3 {[%emt 0:00:42]} a4 {[%emt 0:01:20]} 25. Nd4 {[%emt 0:10:49]} Na6 {[%emt 0:00:21]} 26. Rde1 {[%emt 0:06:40]} Nc5 {[%emt 0:00:46]} 27. Nf5 {[%emt 0:00:09]} Rf7 {[%emt 0:02:16]} 28. Bh3 {[%emt 0:00:51]} c6 {[%emt 0:04:03]} 29. g5 {[%emt 0:01:32]} cxd5 {[%emt 0:02:31]} 30. gxh6 {[%emt 0:02:42]} gxh6 {[%emt 0:00:21]} 31. Nxh6 {[%emt 0:00:46]} Rc7 {[%emt 0:03:50]} 32. Bf5 {[%emt 0:02:26]} Bh7 {[%emt 0:03:30]} 33. Bg6 {[%emt 0:06:27]} Qf8 {[%emt 0:00:17]} 34. Nf5 {[%emt 0:00:09]} Ne4 {[%emt 0:00:47]} 35. Qd3 {[%emt 0:00:23]} Ra5 {[%emt 0:03:01]} 36. Nh4 {[%emt 0:01:35]} Qh6 {[%emt 0:01:06]} 37. Bxh7 {[%emt 0:04:45]} Kxh7 {[%emt 0:02:08]} 38. Rxe4 {[%emt 0:01:14]} dxe4 {[%emt 0:00:29]} 39. Qxe4+ {[%emt 0:00:08]} f5 {[%emt 0:00:15]} 40. Qe8 {[%emt 0:00:00]} Rg7 {[%emt 0:00:00]} 41. Ng6 {[%emt 0:03:28]} Rg8 {[%emt 0:01:44]} 42. Qd7+ {[%emt 0:02:24]} Rg7 {[%emt 0:07:14]} 43. Qd8 {[%emt 0:00:10]} 1-0

[Event "76th Montenegro Championship 2024"]
[Site "Podgorica"]
[Date "2024.02.11"]
[Round "7.11"]
[White "Djurovic, Peko"]
[Black "Ratkovic, Milorad"]
[Result "0-1"]
[ECO "B81"]
[WhiteElo "2332"]
[BlackElo "2063"]
[Annotator "TA"]
[PlyCount "70"]
[EventDate "2024.02.06"]
[EventType "swiss"]
[EventCountry "MNE"]
[SourceTitle "playchess.com"]
[Source "ChessBase"]
[SourceQuality "1"]
[TimeControl "40/5400+30:1800+30"]

{[%evp 15,70,33,77,79,64,70,82,68,82,59,74,70,60,54,72,64,107,117,110,110,113,94,100,91,116,58,114,108,179,-631,-639,-618,-546,-503,-124,-851,-837,-799,-697,-1112,-1083,-1078,-547,-1102,-1067,-6037,-1454,-1487,-1465,-1553,-877,-721,-486,-2168,-1748,-2052,-1895]} 1. e4 {[%emt 0:00:05]} c5 {[%emt 0:00:08]} 2. Nf3 {[%emt 0:00:08]} e6 {[%emt 0:00:05]} 3. d4 {[%emt 0:00:05]} cxd4 {[%emt 0:00:05]} 4. Nxd4 {[%emt 0:00:04]} Nf6 {[%emt 0:00:20][%cal Bg8f6,Bf6d7,Bd7c5][%mdl 32]} 5. Nc3 {[%emt 0:00:15]} d6 {[%emt 0:00:06]} 6. g4 {[%emt 0:01:41]} h6 {[%emt 0:00:06]} 7. h4 {[%emt 0:00:37]} a6 {[%emt 0:00:08]} 8. Rg1 {[%emt 0:01:18]} Nfd7 {[%emt 0:02:56]} 9. g5 {[%emt 0:02:08]} hxg5 {[%emt 0:00:11]} 10. hxg5 {[%emt 0:00:05]} g6 {[%emt 0:00:26]} 11. Be3 {[%emt 0:00:42] White is better.} b5 {[%emt 0:00:51] [#]} 12. a3 $1 {[%emt 0:02:06]} Bb7 {[%emt 0:01:00]} 13. f4 {[%emt 0:03:23][%cal Bf2f4,Bf4f5][%mdl 32]} Nc5 {[%emt 0:02:14][%cal Ob8d7]} 14. Bg2 {[%emt 0:00:45]} Qc7 {[%emt 0:04:29]} 15. Qg4 {[%emt 0:11:49]} Nc6 {[%emt 0:01:21]} 16. Nxc6 {[%emt 0:14:02]} Qxc6 {[%emt 0:08:01]} 17. f5 {[%emt 0:12:40]} O-O-O {[%emt 0:03:58]} 18. O-O-O {[%emt 0:11:03] Hoping for fxg6.} Kb8 {[%emt 0:04:33]} 19. Bd4 {[%emt 0:02:45]} Rh5 {[%emt 0:05:39]} 20. b4 {[%emt 0:17:28]} ({White should play} 20. e5 $16 d5 (20... exf5 $2 21. Qxh5 Qxg2 22. Qh7 $18) 21. fxg6 fxg6 22. Rgf1) 20... e5 {[%emt 0:03:58] [#]} (20... Nd7 $14 21. fxg6 (21. fxe6 fxe6 22. Qxe6 Rxg5 $16) 21... fxg6 22. Qxe6 Rxg5) 21. Bxe5 $1 $16 {[%emt 0:06:32] And now Bd4 would win.} (21. Bxc5 Rc8 22. fxg6 dxc5) 21... Rc8 {[%emt 1:00:25]} (21... Na4 $16 22. Nxa4 Rc8) 22. Bxd6+ $4 {[%emt 0:07:54][%mdl 8192]} (22. Bd4 $18 Na4 23. e5) 22... Bxd6 $19 {[%emt 0:00:00]} 23. bxc5 {[%emt 0:02:36]} Bxc5 {[%emt 0:00:00]} 24. Qg3+ {[%emt 0:00:23]} Ka8 $2 {[%emt 0:00:00]} (24... Ka7 $19 25. e5 Bxa3+ 26. Kd2 Rh2) 25. Rge1 {[%emt 0:01:33][%mdl 8192] This move loses the game for White.} (25. e5 $17 Qc7 (25... Bxa3+ 26. Kb1 $14) 26. Bxb7+ Kxb7 (26... Qxb7 27. Nd5 $14) 27. Qg2+ Kb8 28. Nd5 Bxa3+ 29. Kb1 Qxe5 30. Qg3 Qxg3 31. Rxg3) 25... Bxa3+ {[%emt 0:00:00] This pair of bishops is nice. Black is clearly winning.} 26. Kd2 {[%emt 0:00:00]} b4 {[%emt 0:00:00]} 27. Nb1 {[%emt 0:00:17]} Qxc2+ {[%emt 0:00:00]} 28. Ke3 {[%emt 0:00:01]} Qc5+ {[%emt 0:00:00]} 29. Kf4 {[%emt 0:01:19]} Bb2 {[%emt 0:00:00]} 30. Kg4 {[%emt 0:00:56]} Be5 {[%emt 0:00:00]} (30... gxf5+ $142 31. Kf3 fxe4+ (31... Bxe4+ $2 32. Rxe4 fxe4+ 33. Ke2 $19) 32. Ke2 Rxg5 (32... Qxg5 $2 33. Qxg5 Rxg5 34. Bh1 $19)) 31. Qe3 {[%emt 0:00:47]} gxf5+ {[%emt 0:00:00]} 32. exf5 {[%emt 0:00:13]} Qc4+ {[%emt 0:00:00]} 33. Be4 {[%emt 0:00:12]} Rch8 {[%emt 0:00:00] ( -> ...Rh2)} 34. Nd2 {[%emt 0:00:05]} (34. Rd8+ $142 Rxd8 35. Kxh5 Rh8+ 36. Kg4) 34... Rh4+ {[%emt 0:00:00]} 35. Kf3 {[%emt 0:00:02]} Qb5 {[%emt 0:00:00] Weighted Error Value: White=1.25/Black=1.07.  Loses game:     	White=1     	---        Missed win:     	White=1     	---        Mistake:       	White=1     	Black=2      Inaccurate:     	White=1     	Black=1      OK:         	White=7     	Black=5      Best:        	---       	Black=2      Strong:       	White=2     	---} 0-1

[Event "76th Montenegro Championship 2024"]
[Site "Podgorica"]
[Date "2024.02.11"]
[Round "7.12"]
[White "Skvortsov, Andrei"]
[Black "Kandic, Milojko"]
[Result "1-0"]
[ECO "B06"]
[WhiteElo "2307"]
[BlackElo "2046"]
[Annotator "TA"]
[PlyCount "43"]
[EventDate "2024.02.06"]
[EventType "swiss"]
[EventCountry "MNE"]
[SourceTitle "playchess.com"]
[Source "ChessBase"]
[SourceQuality "1"]
[TimeControl "40/5400+30:1800+30"]

{[%evp 9,43,45,41,4,0,-12,18,31,37,59,106,70,151,163,229,131,141,123,145,135,241,234,227,226,253,252,819,764,906,664,650,650,805,820,838,828]} 1. g3 {[%emt 0:05:02]} g6 {[%emt 0:00:33]} 2. e4 {[%emt 0:00:15]} d5 {[%emt 0:01:41]} 3. Nc3 {[%emt 0:02:11]} dxe4 {[%emt 0:03:04]} 4. Nxe4 {[%emt 0:00:04]} f5 {[%emt 0:00:45]} 5. Nc3 {[%emt 0:00:33]} e5 {[%emt 0:01:06]} 6. d3 {[%emt 0:00:27]} Bg7 {[%emt 0:00:34]} 7. Bg2 {[%emt 0:01:23]} Ne7 {[%emt 0:00:58]} 8. f4 {[%emt 0:02:54] The position is equal.} exf4 {[%emt 0:10:48]} 9. Bxf4 {[%emt 0:00:19]} h6 {[%emt 0:01:40]} ({Reject} 9... Bxc3+ $6 10. bxc3 Nd5 11. Bh6 $16) (9... Nbc6 $14) 10. h4 {[%emt 0:02:47]} c6 {[%emt 0:00:56]} (10... Nbc6 $14) 11. Qd2 $16 {[%emt 0:01:23] White is more active.} Qa5 {[%emt 0:00:56]} (11... Nd7 $142 12. O-O-O Nf6) 12. Nge2 {[%emt 0:00:26]} ({Better is} 12. O-O-O $18) 12... Be6 {[%emt 0:09:26]} 13. Qe3 $36 {[%emt 0:04:38][%mdl 2048] Black is under strong pressure.} Kf7 {[%emt 0:02:16]} 14. Nd4 {[%emt 0:03:49]} Bd7 {[%emt 0:03:46]} (14... Bxd4 $16 15. Qxd4 Rd8) 15. O-O-O $18 {[%emt 0:03:50][%cal Ba1d1,Bd1e1,Be1e6][%mdl 32] Nf3 is the strong threat.} Qc5 {[%emt 0:07:23] [#]} 16. Nxf5 {[%emt 0:04:02][%mdl 512]} Qxf5 {[%emt 0:01:56]} 17. Rhf1 {[%emt 0:01:13]} Ke8 $2 {[%emt 0:11:35]} (17... Qf6 18. Be5 (18. Bxb8 Nf5 $11) 18... Nf5 19. Rxf5 Qxf5) 18. Rde1 {[%emt 0:01:01] White is clearly winning.} Qe6 {[%emt 0:05:26]} 19. Qxe6 {[%emt 0:00:56]} Bxe6 {[%emt 0:00:03]} 20. Rxe6 {[%emt 0:00:06] Bd6 would now be deadly.} Kd8 {[%emt 0:00:49]} 21. Bh3 {[%emt 0:02:15] This pair of bishops is nice.} Rf8 {[%emt 0:03:18] [#]} 22. Bc7+ $1 {[%emt 0:05:54][%mdl 512] Weighted Error Value: White=0.44/Black=0.39.  Mistake:       	White=1     	Black=5      Inaccurate:     	White=1     	Black=1      OK:         	White=4     	Black=2      Best:        	White=1     	---        Brilliant:      	White=1     	---} 1-0

[Event "76th Montenegro Championship 2024"]
[Site "Podgorica"]
[Date "2024.02.11"]
[Round "7.13"]
[White "Podlesnik, Bogdan"]
[Black "Koljevic, Nikolina"]
[Result "1-0"]
[ECO "B15"]
[WhiteElo "2284"]
[BlackElo "1974"]
[Annotator "RC"]
[PlyCount "103"]
[EventDate "2024.02.06"]
[EventType "swiss"]
[EventCountry "MNE"]
[SourceTitle "playchess.com"]
[Source "ChessBase"]
[SourceQuality "1"]
[TimeControl "40/5400+30:1800+30"]

1. e4 {[%emt 0:07:00]} c6 {[%emt 0:01:17]} 2. d4 {[%emt 0:00:28]} d5 {[%emt 0:00:17]} 3. Nc3 {[%emt 0:00:05]} dxe4 {[%emt 0:00:06]} 4. Nxe4 {[%emt 0:00:04]} Nf6 {[%emt 0:00:07]} 5. Nxf6+ {[%emt 0:00:04]} exf6 {[%emt 0:00:07]} 6. Bc4 {[%emt 0:00:19]} Bd6 {[%emt 0:01:05]} 7. Qe2+ {[%emt 0:00:07]} Qe7 {[%emt 0:00:19]} 8. Qxe7+ {[%emt 0:00:08]} Kxe7 {[%emt 0:00:27]} 9. Ne2 {[%emt 0:00:09]} Re8 {[%emt 0:02:36]} 10. Bf4 {[%emt 0:00:24]} Be6 {[%emt 0:07:35]} 11. Bd3 {[%emt 0:01:08]} a5 {[%emt 0:05:57]} 12. O-O-O {[%emt 0:10:27]} Na6 {[%emt 0:05:26]} 13. Bxa6 {[%emt 0:00:30]} Rxa6 {[%emt 0:00:30]} 14. Bxd6+ {[%emt 0:05:01]} Kxd6 {[%emt 0:00:10]} 15. Rhe1 {[%emt 0:05:52]} Raa8 {[%emt 0:05:42]} 16. b3 {[%emt 0:04:25]} b5 {[%emt 0:09:29]} 17. Ng3 {[%emt 0:05:19]} Kc7 {[%emt 0:07:26]} 18. f3 {[%emt 0:02:00]} g6 {[%emt 0:10:43]} 19. Ne4 {[%emt 0:00:48]} f5 {[%emt 0:00:57]} 20. Nc5 {[%emt 0:06:19]} Rad8 {[%emt 0:06:18]} 21. c3 {[%emt 0:01:21]} a4 {[%emt 0:01:29]} 22. Kc2 {[%emt 0:03:01]} Ra8 {[%emt 0:05:15]} 23. Kb2 {[%emt 0:01:13]} g5 {[%emt 0:03:24]} 24. Re5 {[%emt 0:05:18]} axb3 {[%emt 0:06:01]} 25. axb3 {[%emt 0:00:10]} Bd5 {[%emt 0:01:10]} 26. Rde1 {[%emt 0:00:31]} Rxe5 {[%emt 0:01:44]} 27. Rxe5 {[%emt 0:00:08]} g4 {[%emt 0:01:03]} 28. f4 {[%emt 0:01:19]} g3 {[%emt 0:02:17]} 29. hxg3 {[%emt 0:01:06]} Rg8 {[%emt 0:00:40]} 30. Re3 {[%emt 0:00:27]} Kd6 {[%emt 0:00:34]} 31. Ka3 {[%emt 0:01:05]} Bxg2 {[%emt 0:01:30]} 32. Nb7+ {[%emt 0:07:23]} Kd7 {[%emt 0:00:16]} 33. Kb4 {[%emt 0:01:21]} Bd5 {[%emt 0:03:24]} 34. Ka5 {[%emt 0:06:55]} h5 {[%emt 0:02:50]} 35. Kb4 {[%emt 0:03:35]} Be4 {[%emt 0:02:44]} 36. Kc5 {[%emt 0:07:22]} Rg6 {[%emt 0:01:34]} 37. c4 {[%emt 0:00:47]} bxc4 {[%emt 0:01:18]} 38. bxc4 {[%emt 0:00:10]} Rh6 {[%emt 0:00:27]} 39. Ra3 {[%emt 0:02:29]} Kc7 {[%emt 0:01:53]} 40. Rb3 {[%emt 0:00:00]} h4 {[%emt 0:00:00]} 41. gxh4 {[%emt 0:01:10]} Rxh4 {[%emt 0:01:09]} 42. Nd6 {[%emt 0:01:08]} Rxf4 {[%emt 0:03:13]} 43. Rb7+ {[%emt 0:00:14]} Kd8 {[%emt 0:00:04]} 44. Rxf7 {[%emt 0:01:08]} Bg2 {[%emt 0:01:10]} 45. Rg7 {[%emt 0:02:47]} Rg4 {[%emt 0:03:26]} 46. Rf7 {[%emt 0:00:23]} Rf4 {[%emt 0:06:39]} 47. Ra7 {[%emt 0:02:26]} Rf2 {[%emt 0:02:32]} 48. Nf7+ {[%emt 0:00:22]} Ke8 {[%emt 0:00:25]} 49. Kd6 {[%emt 0:06:58]} f4 {[%emt 0:03:28]} 50. Ng5 {[%emt 0:01:44]} Kf8 {[%emt 0:02:37]} 51. Ke6 {[%emt 0:00:34]} Re2+ {[%emt 0:02:31]} 52. Kf6 {[%emt 0:00:26]} 1-0

[Event "76th Montenegro Championship 2024"]
[Site "Podgorica"]
[Date "2024.02.11"]
[Round "7.14"]
[White "Abramovic, Dragoljub"]
[Black "Nikac, Predrag"]
[Result "1/2-1/2"]
[ECO "A80"]
[WhiteElo "2018"]
[BlackElo "2304"]
[Annotator "TA"]
[PlyCount "92"]
[EventDate "2024.02.06"]
[EventType "swiss"]
[EventCountry "MNE"]
[SourceTitle "playchess.com"]
[Source "ChessBase"]
[SourceQuality "1"]
[TimeControl "40/5400+30:1800+30"]

{[%evp 9,92,0,0,-33,0,-20,-18,-20,-18,-28,-25,-22,-15,-22,56,29,22,28,29,0,26,10,9,6,44,0,0,0,37,26,27,26,42,26,34,40,46,54,44,22,48,0,0,-50,-52,-53,9,0,25,17,56,0,0,0,0,0,0,0,0,0,0,0,0,0,0,0,0,0,0,0,0,0,0,0,0,0,0,0,0,0,0,0,0,0,0]} 1. d4 {[%emt 0:07:31]} f5 {[%emt 0:05:43]} 2. Nc3 {[%emt 0:02:27]} d5 {[%emt 0:00:30]} 3. Nf3 {[%emt 0:01:42]} e6 {[%emt 0:02:32]} 4. Bf4 {[%emt 0:00:17]} Bd6 {[%emt 0:00:22]} 5. Qd2 {[%emt 0:01:31]} Nf6 {[%emt 0:00:19]} 6. Bxd6 {[%emt 0:00:31]} Qxd6 {[%emt 0:00:13]} 7. Ne5 {[%emt 0:00:36]} a6 {[%emt 0:00:34]} 8. e3 {[%emt 0:00:30]} O-O {[%emt 0:00:19]} 9. Bd3 {[%emt 0:00:27]} c5 {[%emt 0:01:25]} 10. O-O {[%emt 0:01:35]} Nc6 {[%emt 0:00:25]} 11. Nxc6 {[%emt 0:00:29]} bxc6 {[%emt 0:00:09]} (11... Qxc6 $11 12. dxc5 Qxc5) 12. dxc5 {[%emt 0:01:20]} Qxc5 {[%emt 0:00:16]} 13. Na4 {[%emt 0:00:51]} Qd6 {[%emt 0:03:06]} 14. b4 {[%emt 0:05:44]} Rb8 {[%emt 0:04:05]} 15. Nc5 {[%emt 0:03:00]} a5 {[%emt 0:00:10]} 16. a3 {[%emt 0:00:20]} e5 {[%emt 0:00:08]} 17. f4 {[%emt 0:00:40]} axb4 {[%emt 0:04:30]} 18. axb4 {[%emt 0:00:11]} Nd7 {[%emt 0:03:52]} 19. Nxd7 {[%emt 0:02:24]} Bxd7 {[%emt 0:00:12]} 20. c3 {[%emt 0:00:25]} Ra8 {[%emt 0:01:52]} 21. g3 {[%emt 0:04:45]} g6 {[%emt 0:03:18]} 22. Be2 {[%emt 0:03:03]} Rfe8 {[%emt 0:08:04]} 23. Bf3 {[%emt 0:01:38]} Be6 {[%emt 0:02:42]} 24. Rfd1 {[%emt 0:04:08]} Qc7 {[%emt 0:03:46]} 25. Rxa8 {[%emt 0:03:09]} (25. fxe5 $14 Qxe5 26. Qd4 Qxd4 27. exd4) 25... Rxa8 $11 {[%emt 0:00:13]} 26. b5 {[%emt 0:01:46]} e4 $1 $15 {[%emt 0:00:59]} 27. Be2 {[%emt 0:00:29]} c5 {[%emt 0:04:33]} ({Better is} 27... cxb5 $15 28. Bxb5 Ra3) 28. Qb2 {[%emt 0:09:50]} Qb6 {[%emt 0:06:01] [#]} 29. c4 $1 $36 {[%emt 0:11:46][%mdl 2048] White has some pressure.} dxc4 {[%emt 0:00:22]} 30. Qe5 {[%emt 0:00:25]} (30. h4 $14 Bf7 31. Kf2) 30... Bf7 $1 $11 {[%emt 0:01:18] The position is equal.} 31. Rd7 {[%emt 0:03:25][%cal Oe2c4] Bxc4! would kill now.} Re8 {[%emt 0:10:33]} (31... Qxb5 32. Rxf7 Kxf7 33. Qd5+ Ke7 34. Qxa8 Qb1+ 35. Kg2) 32. Qc3 {[%emt 0:08:46]} Qxb5 {[%emt 0:08:23]} 33. Rxf7 {[%emt 0:01:01][%csl Gf7][%cal Rc3g7] [#]} Qb1+ {[%emt 0:00:22]} 34. Kf2 {[%emt 0:00:13][%csl Gf7][%cal Rc3g7]} Kxf7 {[%emt 0:00:27]} 35. Bxc4+ {[%emt 0:00:22]} Re6 {[%emt 0:01:32]} 36. Bxe6+ {[%emt 0:08:04]} Kxe6 {[%emt 0:00:45][%mdl 4096] Endgame. KQ-KQ} 37. Qe5+ {[%emt 0:01:00]} Kf7 {[%emt 0:00:52]} 38. Qc7+ {[%emt 0:00:37]} Ke8 {[%emt 0:02:13]} 39. Qc8+ {[%emt 0:00:51]} Kf7 {[%emt 0:00:23]} 40. Qd7+ {[%emt 0:00:00]} Kf8 {[%emt 0:00:00]} 41. Qd8+ {[%emt 0:00:45]} Kf7 {[%emt 0:01:23] White must now prevent ...Qc2+.} 42. Qd7+ {[%emt 0:00:03]} Kf8 {[%emt 0:00:03]} 43. Qd8+ {[%emt 0:00:01]} Kf7 {[%emt 0:00:02]} 44. Qd7+ Kg8 {[%emt 0:53:34]} 45. Qe8+ {[%emt 0:44:22]} Kg7 {And now ...Qc2+ would win.} 46. Qe5+ {[%emt 0:00:30]} Kg8 {[%emt 0:01:00] Weighted Error Value: White=0.11 (very precise) /Black=0.13 (very precise) .  Mistake:       	White=3     	Black=2      Inaccurate:     	White=3     	Black=5      OK:         	White=13    	Black=12     Best:        	---       	Black=1      Strong:       	---       	Black=2} 1/2-1/2